[Event "MČR družstev mladších žáků 2024"]
[Site "Harrachov, Czech Republic"]
[Date "2024.06.15"]
[Round "5.7"]
[White "Vanek Martin"]
[Black "Vancakova Veronika"]
[Result "0-1"]
[TimeControl "25+10"]
[WhiteFideId "23769238"]
[BlackFideId "23731907"]
[WhiteElo "1580"]
[BlackElo "1437"]

1. d4 {[%clk 00:25:18]} {[%emt 00:00:01]} Nf6 {[%clk 00:25:19]} 2. c4 {[%clk
00:25:26]} {[%emt 00:00:02]} g6 {[%clk 00:25:28]} {[%emt 00:00:01]} 3. Nc3
{[%clk 00:25:34]} {[%emt 00:00:02]} Bg7 {[%clk 00:25:33]} {[%emt 00:00:05]} 4.
e4 {[%clk 00:25:33]} {[%emt 00:00:10]} d6 {[%clk 00:25:39]} {[%emt 00:00:05]} 5.
h3 {[%clk 00:25:39]} {[%emt 00:00:04]} O-O {[%clk 00:25:41]} {[%emt 00:00:08]}
6. Be3 {[%clk 00:25:46]} {[%emt 00:00:04]} Nbd7 {[%clk 00:25:44]} {[%emt
00:00:07]} 7. g4 {[%clk 00:25:51]} {[%emt 00:00:04]} e5 {[%clk 00:25:30]}
{[%emt 00:00:24]} 8. d5 {[%clk 00:25:59]} {[%emt 00:00:03]} h5 {[%clk
00:24:07]} {[%emt 00:01:34]} 9. f3 {[%clk 00:25:31]} {[%emt 00:00:38]} Nb6
{[%clk 00:22:38]} {[%emt 00:01:39]} 10. Bd3 {[%clk 00:24:18]} {[%emt 00:01:23]}
c6 {[%clk 00:22:36]} {[%emt 00:00:11]} 11. Nge2 {[%clk 00:24:09]} {[%emt
00:00:18]} cxd5 {[%clk 00:22:18]} {[%emt 00:00:29]} 12. cxd5 {[%clk 00:24:15]}
{[%emt 00:00:03]} Bd7 {[%clk 00:22:16]} {[%emt 00:00:12]} 13. Bg5 {[%clk
00:23:24]} {[%emt 00:01:01]} hxg4 {[%clk 00:21:07]} {[%emt 00:01:21]} 14. hxg4
{[%clk 00:23:02]} {[%emt 00:00:32]} Re8 {[%clk 00:19:08]} {[%emt 00:02:09]} 15.
Ng3 {[%clk 00:22:43]} {[%emt 00:00:29]} a6 {[%clk 00:18:13]} {[%emt 00:01:05]}
16. Qd2 {[%clk 00:22:27]} {[%emt 00:00:26]} Kf8 {[%clk 00:17:19]} {[%emt
00:01:04]} 17. O-O-O {[%clk 00:20:47]} {[%emt 00:01:50]} Qc7 {[%clk 00:16:31]}
{[%emt 00:00:59]} 18. Kb1 {[%clk 00:20:48]} {[%emt 00:00:09]} Nc4 {[%clk
00:15:55]} {[%emt 00:00:46]} 19. Bxc4 {[%clk 00:19:16]} {[%emt 00:01:42]} Qxc4
{[%clk 00:16:03]} {[%emt 00:00:03]} 20. Qe2 {[%clk 00:17:08]} {[%emt 00:02:18]}
Qxe2 {[%clk 00:15:33]} {[%emt 00:00:40]} 21. Ncxe2 {[%clk 00:17:10]} {[%emt
00:00:07]} Rec8 {[%clk 00:13:11]} {[%emt 00:02:32]} 22. Rc1 {[%clk 00:16:54]}
{[%emt 00:00:26]} Be8 {[%clk 00:11:55]} {[%emt 00:01:26]} 23. Be3 {[%clk
00:16:11]} {[%emt 00:00:52]} Bd7 {[%clk 00:08:54]} {[%emt 00:03:12]} 24. Rxc8+
{[%clk 00:14:42]} {[%emt 00:01:38]} Rxc8 {[%clk 00:08:59]} {[%emt 00:00:06]} 25.
Rc1 {[%clk 00:14:49]} {[%emt 00:00:02]} Ke7 {[%clk 00:08:05]} {[%emt 00:01:04]}
26. Rxc8 {[%clk 00:14:41]} {[%emt 00:00:19]} Bxc8 {[%clk 00:08:11]} {[%emt
00:00:05]} 27. Kc2 {[%clk 00:14:45]} {[%emt 00:00:06]} Kd7 {[%clk 00:05:03]}
{[%emt 00:03:18]} 28. Kc3 {[%clk 00:14:35]} {[%emt 00:00:19]} Nh7 {[%clk
00:04:10]} {[%emt 00:01:02]} 29. Kc4 {[%clk 00:13:47]} {[%emt 00:00:57]} Bf6
{[%clk 00:04:15]} {[%emt 00:00:06]} 30. Kd3 {[%clk 00:13:09]} {[%emt 00:00:49]}
Kc7 {[%clk 00:03:58]} {[%emt 00:00:27]} 31. Nc3 {[%clk 00:11:18]} {[%emt
00:02:00]} Bd7 {[%clk 00:03:29]} {[%emt 00:00:39]} 32. a4 {[%clk 00:10:48]}
{[%emt 00:00:41]} Bh4 {[%clk 00:02:58]} {[%emt 00:00:40]} 33. Nf1 {[%clk
00:09:40]} {[%emt 00:01:18]} Bg5 {[%clk 00:02:02]} {[%emt 00:01:06]} 34. Bf2
{[%clk 00:09:11]} {[%emt 00:00:38]} Bc1 {[%clk 00:00:56]} {[%emt 00:01:17]} 35.
b3 {[%clk 00:09:18]} {[%emt 00:00:03]} Ng5 {[%clk 00:00:52]} {[%emt 00:00:13]}
36. Ke2 {[%clk 00:09:03]} {[%emt 00:00:25]} Bb2 {[%clk 00:00:45]} {[%emt
00:00:18]} 37. Nd1 {[%clk 00:08:53]} {[%emt 00:00:21]} Ba3 {[%clk 00:00:50]}
{[%emt 00:00:05]} 38. a5 {[%clk 00:08:28]} {[%emt 00:00:35]} Bb5+ {[%clk
00:00:57]} {[%emt 00:00:02]} 39. Ke3 {[%clk 00:07:37]} {[%emt 00:01:01]} Bxf1
{[%clk 00:01:00]} {[%emt 00:00:07]} 40. Be1 {[%clk 00:07:18]} {[%emt 00:00:28]}
Bc5+ {[%clk 00:00:59]} {[%emt 00:00:12]} 41. Kd2 {[%clk 00:07:17]} {[%emt
00:00:11]} Nxf3+ {[%clk 00:01:05]} {[%emt 00:00:04]} 0-1



[ePGN "0.1;DGT LiveChess/2.2.6"]

[Event "MČR družstev mladších žáků 2024"]
[Site "Harrachov, Czech Republic"]
[Date "2024.06.15"]
[Round "5.8"]
[White "Walder Hugo"]
[Black "Bilek Filip"]
[Result "1-0"]
[TimeControl "25+10"]
[WhiteFideId "23743360"]
[BlackFideId "23763493"]
[WhiteElo "1489"]
[BlackElo "1249"]

1. e4 {[%clk 00:25:17]} {[%emt 00:00:02]} c5 {[%clk 00:25:18]} {[%emt
00:00:02]} 2. Nf3 {[%clk 00:25:27]} e6 {[%clk 00:25:27]} {[%emt 00:00:03]} 3.
d4 {[%clk 00:25:33]} {[%emt 00:00:03]} cxd4 {[%clk 00:25:35]} {[%emt 00:00:02]}
4. Nxd4 {[%clk 00:25:41]} {[%emt 00:00:02]} Nf6 {[%clk 00:25:42]} {[%emt
00:00:02]} 5. Bd3 {[%clk 00:25:34]} {[%emt 00:00:17]} Nc6 {[%clk 00:25:47]}
{[%emt 00:00:05]} 6. c3 {[%clk 00:25:43]} {[%emt 00:00:01]} Bc5 {[%clk
00:25:46]} {[%emt 00:00:10]} 7. Nxc6 {[%clk 00:24:50]} {[%emt 00:01:04]} bxc6
{[%clk 00:25:50]} {[%emt 00:00:05]} 8. O-O {[%clk 00:24:49]} {[%emt 00:00:13]}
O-O {[%clk 00:25:55]} {[%emt 00:00:04]} 9. Bg5 {[%clk 00:24:50]} {[%emt
00:00:09]} Be7 {[%clk 00:25:51]} {[%emt 00:00:14]} 10. e5 {[%clk 00:23:02]}
{[%emt 00:01:59]} Nd5 {[%clk 00:25:53]} {[%emt 00:00:06]} 11. Bxe7 {[%clk
00:22:55]} {[%emt 00:00:19]} Qxe7 {[%clk 00:25:34]} {[%emt 00:00:28]} 12. Qd2
{[%clk 00:21:48]} {[%emt 00:01:17]} f6 {[%clk 00:24:08]} {[%emt 00:01:36]} 13.
f4 {[%clk 00:20:51]} {[%emt 00:01:06]} Qf7 {[%clk 00:23:59]} {[%emt 00:00:20]}
14. c4 {[%clk 00:20:30]} {[%emt 00:00:29]} Nb6 {[%clk 00:23:16]} {[%emt
00:00:54]} 15. Nc3 {[%clk 00:20:16]} {[%emt 00:00:23]} f5 {[%clk 00:23:11]}
{[%emt 00:00:16]} 16. Qf2 {[%clk 00:18:37]} {[%emt 00:01:48]} Ba6 {[%clk
00:22:42]} {[%emt 00:00:39]} 17. b3 {[%clk 00:18:45]} {[%emt 00:00:04]} Qg6
{[%clk 00:22:19]} {[%emt 00:00:30]} 18. Qh4 {[%clk 00:18:25]} {[%emt 00:00:28]}
Rf7 {[%clk 00:21:49]} {[%emt 00:00:44]} 19. Rf3 {[%clk 00:17:16]} {[%emt
00:01:19]} Qh6 {[%clk 00:20:40]} {[%emt 00:01:20]} 20. Qxh6 {[%clk 00:16:59]}
{[%emt 00:00:28]} gxh6 {[%clk 00:20:45]} {[%emt 00:00:05]} 21. Rh3 {[%clk
00:17:07]} {[%emt 00:00:02]} Kg7 {[%clk 00:20:46]} {[%emt 00:00:09]} 22. Re1
{[%clk 00:16:28]} {[%emt 00:00:25]} Rd8 {[%clk 00:19:52]} {[%emt 00:01:26]} 23.
Ree3 {[%clk 00:15:52]} {[%emt 00:00:44]} d6 {[%clk 00:19:52]} {[%emt 00:00:13]}
24. Reg3+ {[%clk 00:15:28]} {[%emt 00:00:35]} Kh8 {[%clk 00:19:51]} {[%emt
00:00:09]} 25. Rxh6 {[%clk 00:14:42]} {[%emt 00:00:59]} dxe5 {[%clk 00:19:36]}
{[%emt 00:00:24]} 26. fxe5 {[%clk 00:14:45]} {[%emt 00:00:08]} Re7 {[%clk
00:19:21]} {[%emt 00:00:21]} 27. Kf2 {[%clk 00:12:55]} {[%emt 00:02:03]} Bb7
{[%clk 00:18:33]} {[%emt 00:00:58]} 28. Ke2 {[%clk 00:12:04]} {[%emt 00:01:02]}
Rd4 {[%clk 00:17:34]} {[%emt 00:01:01]} 29. Rf6 {[%clk 00:11:56]} {[%emt
00:00:26]} Rg4 {[%clk 00:17:18]} {[%emt 00:00:25]} 30. Rxg4 {[%clk 00:11:49]}
{[%emt 00:00:18]} fxg4 {[%clk 00:17:24]} {[%emt 00:00:05]} 31. Ne4 {[%clk
00:11:22]} {[%emt 00:00:34]} Kg7 {[%clk 00:16:56]} {[%emt 00:00:37]} 32. Ng5
{[%clk 00:11:04]} {[%emt 00:00:23]} Bc8 {[%clk 00:16:49]} {[%emt 00:00:24]} 33.
Bxh7 {[%clk 00:10:54]} {[%emt 00:00:22]} Nd7 {[%clk 00:16:36]} {[%emt
00:00:21]} 34. Rg6+ {[%clk 00:10:52]} {[%emt 00:00:12]} Kf8 {[%clk 00:16:13]}
{[%emt 00:00:34]} 35. Rg8# {[%clk 00:11:01]} {[%emt 00:00:02]} 1-0



[ePGN "0.1;DGT LiveChess/2.2.6"]

[Event "MČR družstev mladších žáků 2024"]
[Site "Harrachov, Czech Republic"]
[Date "2024.06.15"]
[Round "5.9"]
[White "Najdkova Laura"]
[Black "Bucek Vit"]
[Result "0-1"]
[TimeControl "25+10"]
[WhiteFideId "23751290"]
[BlackFideId "23750812"]
[WhiteElo "1337"]
[BlackElo "1582"]

1. e4 {[%clk 00:25:18]} {[%emt 00:00:01]} c5 {[%clk 00:25:19]} 2. Nf3 {[%clk
00:25:27]} {[%emt 00:00:01]} Nc6 {[%clk 00:25:28]} {[%emt 00:00:01]} 3. d4
{[%clk 00:25:36]} cxd4 {[%clk 00:25:37]} {[%emt 00:00:01]} 4. Nxd4 {[%clk
00:25:44]} {[%emt 00:00:02]} g6 {[%clk 00:25:46]} {[%emt 00:00:01]} 5. Nc3
{[%clk 00:25:52]} {[%emt 00:00:01]} Bg7 {[%clk 00:25:55]} {[%emt 00:00:02]} 6.
Be3 {[%clk 00:25:59]} {[%emt 00:00:02]} Nf6 {[%clk 00:26:03]} {[%emt 00:00:02]}
7. Be2 {[%clk 00:26:06]} {[%emt 00:00:04]} O-O {[%clk 00:26:08]} {[%emt
00:00:05]} 8. O-O {[%clk 00:26:06]} {[%emt 00:00:10]} d6 {[%clk 00:26:15]}
{[%emt 00:00:03]} 9. f4 {[%clk 00:26:05]} {[%emt 00:00:11]} Bd7 {[%clk
00:25:45]} {[%emt 00:00:40]} 10. Kh1 {[%clk 00:25:48]} {[%emt 00:00:26]} Rc8
{[%clk 00:25:43]} {[%emt 00:00:12]} 11. Qe1 {[%clk 00:25:55]} {[%emt 00:00:04]}
Nxe4 {[%clk 00:25:21]} {[%emt 00:00:32]} 12. Nxc6 {[%clk 00:25:41]} {[%emt
00:00:24]} Bxc6 {[%clk 00:25:27]} {[%emt 00:00:04]} 13. Nxe4 {[%clk 00:25:38]}
{[%emt 00:00:13]} Bxe4 {[%clk 00:25:26]} {[%emt 00:00:11]} 14. c3 {[%clk
00:24:59]} {[%emt 00:00:49]} Qc7 {[%clk 00:25:19]} {[%emt 00:00:13]} 15. Rd1
{[%clk 00:24:12]} {[%emt 00:00:58]} Qa5 {[%clk 00:25:04]} {[%emt 00:00:24]} 16.
a3 {[%clk 00:24:06]} {[%emt 00:00:20]} Rfd8 {[%clk 00:24:20]} {[%emt 00:00:52]}
17. Bf3 {[%clk 00:23:54]} {[%emt 00:00:24]} Bxf3 {[%clk 00:24:19]} {[%emt
00:00:12]} 18. Rxf3 {[%clk 00:24:02]} {[%emt 00:00:02]} Qb5 {[%clk 00:24:22]}
{[%emt 00:00:03]} 19. Qd2 {[%clk 00:23:54]} {[%emt 00:00:21]} a5 {[%clk
00:23:17]} {[%emt 00:01:15]} 20. Qd5 {[%clk 00:21:38]} {[%emt 00:02:25]} Qxb2
{[%clk 00:23:22]} {[%emt 00:00:07]} 21. Qxa5 {[%clk 00:21:29]} {[%emt
00:00:19]} Bxc3 {[%clk 00:23:22]} {[%emt 00:00:11]} 22. Qd5 {[%clk 00:20:36]}
{[%emt 00:00:57]} Bg7 {[%clk 00:23:07]} {[%emt 00:00:26]} 23. Qe4 {[%clk
00:19:08]} {[%emt 00:01:38]} Re8 {[%clk 00:22:41]} {[%emt 00:00:36]} 24. f5
{[%clk 00:18:26]} {[%emt 00:00:57]} Rc2 {[%clk 00:22:36]} {[%emt 00:00:13]} 25.
Rg1 {[%clk 00:17:39]} {[%emt 00:00:57]} Re2 {[%clk 00:22:06]} {[%emt 00:00:38]}
26. fxg6 {[%clk 00:15:36]} {[%emt 00:02:16]} hxg6 {[%clk 00:22:00]} {[%emt
00:00:16]} 27. Qf4 {[%clk 00:15:32]} {[%emt 00:00:11]} Rf8 {[%clk 00:21:41]}
{[%emt 00:00:30]} 28. Qh4 {[%clk 00:14:45]} {[%emt 00:00:55]} Bh8 {[%clk
00:20:51]} {[%emt 00:01:03]} 29. Rh3 {[%clk 00:14:37]} {[%emt 00:00:16]} Qg7
{[%clk 00:20:57]} {[%emt 00:00:04]} 30. Bh6 {[%clk 00:13:57]} {[%emt 00:00:50]}
Qf6 {[%clk 00:21:01]} {[%emt 00:00:06]} 31. Bxf8 {[%clk 00:13:53]} {[%emt
00:00:16]} Qxh4 {[%clk 00:21:04]} {[%emt 00:00:06]} 32. Rxh4 {[%clk 00:13:59]}
{[%emt 00:00:04]} Bf6 {[%clk 00:21:13]} {[%emt 00:00:01]} 33. Rb4 {[%clk
00:13:47]} {[%emt 00:00:19]} Kxf8 {[%clk 00:21:21]} {[%emt 00:00:06]} 34. Rxb7
{[%clk 00:13:54]} {[%emt 00:00:03]} Ra2 {[%clk 00:21:27]} {[%emt 00:00:04]} 35.
Rb8+ {[%clk 00:13:43]} {[%emt 00:00:22]} Kg7 {[%clk 00:21:34]} {[%emt
00:00:02]} 36. Ra8 {[%clk 00:13:47]} {[%emt 00:00:06]} d5 {[%clk 00:21:40]}
{[%emt 00:00:04]} 37. Rd1 {[%clk 00:13:52]} {[%emt 00:00:04]} d4 {[%clk
00:21:49]} {[%emt 00:00:02]} 38. g3 {[%clk 00:13:46]} {[%emt 00:00:16]} e5
{[%clk 00:21:57]} {[%emt 00:00:02]} 39. Kg1 {[%clk 00:13:51]} {[%emt 00:00:05]}
e4 {[%clk 00:22:05]} {[%emt 00:00:01]} 40. Ra4 {[%clk 00:12:28]} {[%emt
00:01:33]} e3 {[%clk 00:22:11]} {[%emt 00:00:05]} 41. Rdxd4 {[%clk 00:11:39]}
{[%emt 00:00:59]} Ra1+ {[%clk 00:21:54]} {[%emt 00:00:27]} 42. Kg2 {[%clk
00:11:35]} {[%emt 00:00:13]} Bxd4 {[%clk 00:22:03]} {[%emt 00:00:03]} 43. Rxd4
{[%clk 00:11:38]} {[%emt 00:00:07]} e2 {[%clk 00:22:12]} {[%emt 00:00:01]} 44.
Re4 {[%clk 00:11:35]} {[%emt 00:00:13]} e1=Q {[%clk 00:22:19]} {[%emt
00:00:02]} 45. Rxe1 {[%clk 00:11:43]} Rxe1 {[%clk 00:22:28]} {[%emt 00:00:02]}
46. a4 {[%clk 00:11:49]} {[%emt 00:00:04]} Ra1 {[%clk 00:22:36]} {[%emt
00:00:01]} 47. a5 {[%clk 00:11:58]} {[%emt 00:00:02]} Rxa5 {[%clk 00:22:45]}
{[%emt 00:00:02]} 48. h4 {[%clk 00:12:07]} Kf6 {[%clk 00:22:53]} {[%emt
00:00:02]} 49. Kh3 {[%clk 00:12:14]} {[%emt 00:00:03]} Ra3 {[%clk 00:23:02]}
{[%emt 00:00:02]} 50. Kg4 {[%clk 00:12:15]} {[%emt 00:00:08]} Ra4+ {[%clk
00:23:01]} {[%emt 00:00:11]} 51. Kh3 {[%clk 00:12:22]} {[%emt 00:00:02]} Kf5
{[%clk 00:23:10]} {[%emt 00:00:01]} 52. g4+ {[%clk 00:12:24]} {[%emt 00:00:08]}
Rxg4 {[%clk 00:23:18]} {[%emt 00:00:02]} 53. h5 {[%clk 00:12:29]} {[%emt
00:00:05]} gxh5 {[%clk 00:23:26]} {[%emt 00:00:02]} 54. Kh2 {[%clk 00:12:37]}
{[%emt 00:00:02]} Kf4 {[%clk 00:23:35]} {[%emt 00:00:01]} 55. Kh3 {[%clk
00:12:45]} {[%emt 00:00:02]} h4 {[%clk 00:23:44]} 56. Kh2 {[%clk 00:12:53]}
{[%emt 00:00:02]} Rg8 {[%clk 00:23:46]} {[%emt 00:00:08]} 57. Kh3 {[%clk
00:13:00]} {[%emt 00:00:03]} Kf3 {[%clk 00:23:55]} {[%emt 00:00:02]} 58. Kh2
{[%clk 00:13:05]} {[%emt 00:00:04]} Kf2 {[%clk 00:24:00]} {[%emt 00:00:05]} 59.
Kh3 {[%clk 00:13:12]} {[%emt 00:00:03]} Rg3+ {[%clk 00:24:04]} {[%emt
00:00:06]} 60. Kh2 {[%clk 00:13:10]} {[%emt 00:00:11]} f5 {[%clk 00:24:13]}
{[%emt 00:00:01]} 61. Kh1 {[%clk 00:13:18]} {[%emt 00:00:03]} f4 {[%clk
00:24:22]} 62. Kh2 {[%clk 00:13:27]} {[%emt 00:00:01]} f3 {[%clk 00:24:31]}
{[%emt 00:00:01]} 63. Kh1 {[%clk 00:13:36]} Ke3 {[%clk 00:24:40]} 64. Kh2
{[%clk 00:13:35]} {[%emt 00:00:10]} f2 {[%clk 00:24:49]} {[%emt 00:00:02]} 65.
Kh1 {[%clk 00:13:37]} {[%emt 00:00:08]} f1=Q+ {[%clk 00:24:56]} {[%emt
00:00:02]} 66. Kh2 {[%clk 00:13:46]} Qg2+ {[%clk 00:25:04]} {[%emt 00:00:03]}
0-1



[ePGN "0.1;DGT LiveChess/2.2.6"]

[Event "MČR družstev mladších žáků 2024"]
[Site "Harrachov, Czech Republic"]
[Date "2024.06.15"]
[Round "6.1"]
[White "Honcharov Makar"]
[Black "Zrust Lukas"]
[Result "1-0"]
[TimeControl "25+10"]
[WhiteFideId "23746203"]
[BlackFideId "23736666"]
[WhiteElo "1806"]
[BlackElo "1742"]

1. e4 {[%clk 00:25:16]} {[%emt 00:00:03]} c5 {[%clk 00:25:14]} {[%emt
00:00:07]} 2. b4 {[%clk 00:25:25]} {[%emt 00:00:01]} cxb4 {[%clk 00:25:15]}
{[%emt 00:00:09]} 3. a3 {[%clk 00:25:34]} {[%emt 00:00:01]} Nc6 {[%clk
00:25:18]} {[%emt 00:00:06]} 4. axb4 {[%clk 00:25:29]} {[%emt 00:00:15]} d6
{[%clk 00:24:49]} {[%emt 00:00:39]} 5. b5 {[%clk 00:24:55]} {[%emt 00:00:44]}
Ne5 {[%clk 00:24:16]} {[%emt 00:00:43]} 6. d4 {[%clk 00:24:56]} {[%emt
00:00:10]} Nd7 {[%clk 00:24:14]} {[%emt 00:00:10]} 7. Bd3 {[%clk 00:24:40]}
{[%emt 00:00:27]} g6 {[%clk 00:24:13]} {[%emt 00:00:12]} 8. c3 {[%clk
00:24:42]} {[%emt 00:00:08]} Bg7 {[%clk 00:24:22]} {[%emt 00:00:01]} 9. Ne2
{[%clk 00:24:45]} {[%emt 00:00:07]} Ngf6 {[%clk 00:24:28]} {[%emt 00:00:04]} 10.
O-O {[%clk 00:24:40]} {[%emt 00:00:15]} O-O {[%clk 00:24:18]} {[%emt 00:00:21]}
11. f4 {[%clk 00:24:31]} {[%emt 00:00:19]} b6 {[%clk 00:23:46]} {[%emt
00:00:42]} 12. e5 {[%clk 00:24:02]} {[%emt 00:00:39]} Ne8 {[%clk 00:21:47]}
{[%emt 00:02:08]} 13. Be4 {[%clk 00:23:56]} {[%emt 00:00:16]} Rb8 {[%clk
00:20:44]} {[%emt 00:01:13]} 14. Rxa7 {[%clk 00:24:00]} {[%emt 00:00:06]} dxe5
{[%clk 00:20:31]} {[%emt 00:00:23]} 15. fxe5 {[%clk 00:22:45]} {[%emt
00:01:24]} Nc7 {[%clk 00:20:22]} {[%emt 00:00:19]} 16. c4 {[%clk 00:21:38]}
{[%emt 00:01:18]} Ne6 {[%clk 00:19:01]} {[%emt 00:01:30]} 17. Bd5 {[%clk
00:20:41]} {[%emt 00:01:07]} Nc7 {[%clk 00:16:45]} {[%emt 00:02:26]} 18. Bf3
{[%clk 00:19:00]} {[%emt 00:01:52]} f6 {[%clk 00:16:35]} {[%emt 00:00:20]} 19.
e6 {[%clk 00:18:21]} {[%emt 00:00:49]} Nxe6 {[%clk 00:15:47]} {[%emt 00:00:58]}
20. Bd5 {[%clk 00:18:20]} {[%emt 00:00:11]} Kh8 {[%clk 00:14:14]} {[%emt
00:01:43]} 21. Bxe6 {[%clk 00:18:24]} {[%emt 00:00:07]} f5 {[%clk 00:14:16]}
{[%emt 00:00:08]} 22. Bf4 {[%clk 00:17:11]} {[%emt 00:01:22]} Rb7 {[%clk
00:14:04]} {[%emt 00:00:22]} 23. Ra8 {[%clk 00:16:55]} {[%emt 00:00:26]} Nf6
{[%clk 00:10:44]} {[%emt 00:03:30]} 24. Rxc8 {[%clk 00:16:58]} {[%emt
00:00:07]} Qxc8 {[%clk 00:10:44]} {[%emt 00:00:10]} 25. Bxc8 {[%clk 00:17:06]}
{[%emt 00:00:02]} Rxc8 {[%clk 00:10:53]} 26. Nd2 {[%clk 00:17:12]} {[%emt
00:00:04]} Ra8 {[%clk 00:10:31]} {[%emt 00:00:33]} 27. Nc3 {[%clk 00:17:08]}
{[%emt 00:00:14]} Nh5 {[%clk 00:10:31]} {[%emt 00:00:10]} 28. Be5 {[%clk
00:17:13]} {[%emt 00:00:05]} Bxe5 {[%clk 00:10:34]} {[%emt 00:00:06]} 29. dxe5
{[%clk 00:17:22]} Rd7 {[%clk 00:10:32]} {[%emt 00:00:12]} 30. Qf3 {[%clk
00:17:27]} {[%emt 00:00:05]} Rad8 {[%clk 00:10:24]} {[%emt 00:00:18]} 1-0



[ePGN "0.1;DGT LiveChess/2.2.6"]

[Event "MČR družstev mladších žáků 2024"]
[Site "Harrachov, Czech Republic"]
[Date "2024.06.15"]
[Round "6.10"]
[White "Jenikova Sabina"]
[Black "Kozusnik Jan"]
[Result "0-1"]
[TimeControl "25+10"]
[WhiteFideId "23759860"]
[BlackFideId "23731796"]
[WhiteElo "1114"]
[BlackElo "1345"]

1. b4 {[%clk 00:25:06]} {[%emt 00:00:12]} e5 {[%clk 00:25:12]} {[%emt
00:00:09]} 2. Bb2 {[%clk 00:25:15]} {[%emt 00:00:02]} f6 {[%clk 00:24:09]}
{[%emt 00:01:13]} 3. a3 {[%clk 00:25:22]} {[%emt 00:00:03]} d5 {[%clk
00:24:10]} {[%emt 00:00:09]} 4. e3 {[%clk 00:25:23]} {[%emt 00:00:09]} Be6
{[%clk 00:22:50]} {[%emt 00:01:29]} 5. d3 {[%clk 00:24:57]} {[%emt 00:00:36]}
c5 {[%clk 00:22:33]} {[%emt 00:00:27]} 6. b5 {[%clk 00:24:30]} {[%emt
00:00:37]} Qa5+ {[%clk 00:22:18]} {[%emt 00:00:25]} 7. Nd2 {[%clk 00:23:19]}
{[%emt 00:01:21]} Qxb5 {[%clk 00:22:09]} {[%emt 00:00:18]} 8. Rb1 {[%clk
00:23:24]} {[%emt 00:00:06]} Qd7 {[%clk 00:22:14]} {[%emt 00:00:05]} 9. Ngf3
{[%clk 00:23:17]} {[%emt 00:00:18]} Nc6 {[%clk 00:22:00]} {[%emt 00:00:23]} 10.
Be2 {[%clk 00:23:14]} {[%emt 00:00:13]} Bd6 {[%clk 00:20:14]} {[%emt 00:01:56]}
11. c3 {[%clk 00:23:06]} {[%emt 00:00:17]} Nge7 {[%clk 00:19:48]} {[%emt
00:00:36]} 12. O-O {[%clk 00:22:34]} {[%emt 00:00:43]} O-O {[%clk 00:19:43]}
{[%emt 00:00:14]} 13. Qc2 {[%clk 00:20:47]} {[%emt 00:01:57]} b6 {[%clk
00:19:15]} {[%emt 00:00:39]} 14. d4 {[%clk 00:19:21]} {[%emt 00:01:35]} e4
{[%clk 00:19:13]} {[%emt 00:00:12]} 15. Ne1 {[%clk 00:19:15]} {[%emt 00:00:15]}
f5 {[%clk 00:16:50]} {[%emt 00:02:34]} 16. c4 {[%clk 00:17:57]} {[%emt
00:01:28]} cxd4 {[%clk 00:12:24]} {[%emt 00:04:35]} 17. exd4 {[%clk 00:17:03]}
{[%emt 00:01:05]} Rac8 {[%clk 00:10:00]} {[%emt 00:02:34]} 18. Qc3 {[%clk
00:12:38]} {[%emt 00:04:35]} dxc4 {[%clk 00:08:48]} {[%emt 00:01:22]} 19. Nxc4
{[%clk 00:12:31]} {[%emt 00:00:17]} Na5 {[%clk 00:08:32]} {[%emt 00:00:26]} 20.
Nxb6 {[%clk 00:06:44]} {[%emt 00:05:58]} axb6 {[%clk 00:08:18]} {[%emt
00:00:24]} 21. Qe3 {[%clk 00:05:45]} {[%emt 00:01:08]} Nc4 {[%clk 00:06:28]}
{[%emt 00:02:01]} 22. Qg5 {[%clk 00:04:59]} {[%emt 00:00:53]} Nxb2 {[%clk
00:05:22]} {[%emt 00:01:19]} 23. Rxb2 {[%clk 00:05:05]} {[%emt 00:00:03]} Nd5
{[%clk 00:05:29]} {[%emt 00:00:04]} 24. Bb5 {[%clk 00:03:56]} {[%emt 00:01:18]}
Qe7 {[%clk 00:04:56]} {[%emt 00:00:35]} 25. Qd2 {[%clk 00:03:23]} {[%emt
00:00:48]} Bf4 {[%clk 00:04:32]} {[%emt 00:00:38]} 26. Qd1 {[%clk 00:02:04]}
{[%emt 00:01:20]} e3 {[%clk 00:03:58]} {[%emt 00:00:52]} 27. Nf3 {[%clk
00:01:30]} {[%emt 00:00:44]} exf2+ {[%clk 00:03:31]} {[%emt 00:00:38]} 28.
Rfxf2 {[%clk 00:01:17]} {[%emt 00:00:22]} Be3 {[%clk 00:03:20]} {[%emt
00:00:21]} 29. Qe2 {[%clk 00:00:43]} {[%emt 00:00:44]} Bxf2+ {[%clk 00:02:05]}
{[%emt 00:01:25]} 30. Qxf2 {[%clk 00:00:50]} {[%emt 00:00:03]} Rc1+ {[%clk
00:01:57]} {[%emt 00:00:16]} 31. Ne1 {[%clk 00:00:54]} {[%emt 00:00:07]} Qxa3
{[%clk 00:01:23]} {[%emt 00:00:44]} 32. Re2 {[%clk 00:00:44]} {[%emt 00:00:18]}
Nc7 {[%clk 00:00:47]} {[%emt 00:00:47]} 33. h3 {[%clk 00:00:12]} {[%emt
00:00:43]} Nxb5 {[%clk 00:00:13]} {[%emt 00:00:43]} 34. Rxe6 {[%clk 00:00:18]}
{[%emt 00:00:04]} Qc3 {[%clk 00:00:12]} {[%emt 00:00:12]} 35. Re2 {[%clk
00:00:18]} {[%emt 00:00:09]} Nxd4 {[%clk 00:00:17]} {[%emt 00:00:06]} 36. Re3
{[%clk 00:00:22]} {[%emt 00:00:06]} Qc5 {[%clk 00:00:12]} {[%emt 00:00:15]} 37.
Qg3 {[%clk 00:00:15]} {[%emt 00:00:16]} Ne2+ {[%emt 00:00:30]} 0-1



[ePGN "0.1;DGT LiveChess/2.2.6"]